bitfinex/quotes_SOLUSD_20240714
["timestamp","ask_amount","ask_price","bid_price","bid_amount"]
[1720922760843,1.72341485,145.12,145.01,20.0]
[1720922761248,1.72341485,145.12,145.02,1.37872946]
[1720922761746,1.72341485,145.12,145.02,46.37872946]
[1720922761921,1.72341485,145.12,145.03,20.0]
[1720922762528,1.72341485,145.12,145.01,20.0]
[1720922762529,6.4237,145.1,145.01,20.0]
[1720922762751,1.72345491,145.09,145.01,20.0]
[1720922764161,1.72345491,145.09,145.02,1.3787475]
[1720922764362,1.72345491,145.09,145.02,46.3787475]
[1720922764537,1.72325519,145.12,145.03,20.0]
[1720922764737,14.3033699,145.22,145.07,22.42]
[1720922764738,15.7674,145.18,145.07,22.42]
[1720922764960,1.72252627,145.17,145.08,1.37802101]
[1720922765359,1.72252627,145.17,145.03,35.7638]
[1720922765571,1.72252627,145.17,145.04,45.0]
[1720922765770,1.72252627,145.17,145.05,20.0]
[1720922765939,1.72252627,145.17,145.06,46.37821076]
[1720922766142,1.72252627,145.17,145.07,20.0]
[1720922766437,1.72252627,145.17,145.08,1.3781315]
[1720922768459,46.72252627,145.17,145.08,1.3781315]
[1720922770168,1.72252627,145.17,145.08,1.3781315]
[1720922770558,1.72252627,145.17,145.09,1.37804443]
[1720922771558,1.72252627,145.17,145.08,1.37809053]
[1720922771738,46.72252627,145.17,145.08,1.37809053]
[1720922772563,46.72252627,145.17,145.05,20.0]
[1720922772874,46.72252627,145.17,145.03,15.7638]
[1720922773043,32.1911,145.16,145.03,15.7638]
[1720922773235,56.7231878,145.15,145.03,15.7638]
[1720922773440,1.72323971,145.14,144.99,24.59824997]
[1720922773838,1.72323971,145.14,145.0,1.10647571]
[1720922774238,1.72323971,145.14,144.99,24.59824997]
[1720922775266,1.72323971,145.14,145.0,21.37854887]
[1720922775771,1.72323971,145.14,145.01,45.0]
[1720922775965,1.72323971,145.14,145.02,21.37840124]
[1720922776143,1.72323971,145.14,145.03,45.0]
[1720922776343,1.72323971,145.14,145.04,21.37840483]
[1720922776563,1.72323971,145.14,145.05,46.37836403]
[1720922776742,1.72323971,145.14,145.05,45.0]
[1720922777071,1.72323971,145.14,145.06,1.37832012]
[1720922777247,1.72323971,145.14,145.0,20.0]
[1720922777452,1.72323971,145.14,145.01,1.37844123]
[1720922777955,1.72323971,145.14,145.0,20.0]
[1720922778343,1.72323971,145.14,145.01,45.0]
[1720922778561,1.72323971,145.14,145.02,21.37853757]
[1720922778745,1.72323971,145.14,145.03,45.0]
[1720922778943,1.72323971,145.14,145.04,21.37834747]
[1720922779159,1.72323971,145.14,145.05,46.37827673]
[1720922779368,1.72273478,145.15,145.05,46.37827673]
[1720922779572,1.72269236,145.14,145.05,46.37827673]
[1720922779765,1.72266245,145.15,145.05,45.0]
[1720922779967,1.72270927,145.14,145.05,45.0]
[1720922780457,1.72270927,145.14,145.06,1.37832106]
[1720922780939,1.72298103,145.15,145.06,1.37832106]
[1720922781145,1.72298095,145.14,145.06,1.37832106]
[1720922781365,15.6517,145.13,145.0,20.0]
[1720922781568,1.72313646,145.12,144.99,24.59824997]
[1720922781754,1.72313646,145.12,145.0,1.37851057]
[1720922782373,1.72313646,145.12,144.99,21.8392]
[1720922782545,1.72313646,145.12,145.0,45.0]
[1720922782741,1.72313646,145.12,145.01,20.0]
[1720922783073,1.72313646,145.12,145.02,45.0]
[1720922783381,1.72313646,145.12,145.03,20.0]
[1720922783382,6.4979,145.11,145.03,20.0]
[1720922783671,1.72343822,145.1,145.01,20.0]
[1720922783844,1.72343822,145.1,145.02,0.60591253]
[1720922784177,1.72343822,145.1,145.0,20.0]
[1720922784874,1.72343822,145.1,145.01,1.37870974]
[1720922785953,6.4979,145.11,145.01,71.56870974]
[1720922786154,6.4979,145.11,145.02,20.0]
[1720922786380,15.6517,145.13,145.03,46.37826324]
[1720922786555,15.6517,145.13,145.04,20.0]
[1720922786745,15.6517,145.13,145.05,46.37807327]
[1720922787471,15.6517,145.13,145.06,20.0]
[1720922787678,15.6517,145.13,145.07,46.37807775]
[1720922787882,15.6517,145.13,145.08,1.37807787]
[1720922788090,15.6517,145.13,145.06,20.0]
[1720922788255,1.72277121,145.12,145.05,20.0]
[1720922788457,1.72277121,145.12,145.03,20.0]
[1720922788769,1.72277121,145.12,145.04,45.0]
[1720922789083,6.4979,145.11,145.03,20.0]
[1720922789288,1.72318014,145.1,145.0,22.4]
[1720922789784,15.6517,145.09,145.0,22.4]
[1720922790077,1.72334225,145.08,145.0,22.4]
[1720922790280,1.72334225,145.08,145.01,1.3786713]
[1720922790673,17.37503923,145.09,145.01,1.3786713]
[1720922790876,15.6517,145.09,145.01,1.3786713]
[1720922791792,15.6517,145.09,145.01,46.3786713]
[1720922791967,6.4979,145.11,145.02,20.0]
[1720922792167,6.4979,145.11,145.03,46.37827016]
[1720922792475,6.4979,145.11,145.04,20.0]
[1720922792673,6.4979,145.11,145.05,1.37808011]
[1720922793071,1.72298106,145.1,145.04,20.0]
[1720922793956,1.72298106,145.1,145.05,1.02070934]
[1720922794156,1.72298106,145.1,145.01,21.03173044]
[1720922794458,1.72298106,145.1,145.02,1.37853861]
[1720922794980,8.22115028,145.11,145.02,1.37853861]
[1720922795195,1.72306405,145.1,145.02,1.37853861]
[1720922795492,1.72306405,145.1,145.0,21.37858407]
[1720922795667,1.72306405,145.1,145.01,45.0]
[1720922795872,15.6517,145.09,145.02,21.37854449]
[1720922796053,1.72344317,145.08,145.02,1.37854449]
[1720922796257,1.72346815,145.07,145.03,1.37877452]
[1720922796575,1.72346156,145.08,145.01,1.37876925]
[1720922796781,17.3751219,145.09,145.02,1.37873752]
[1720922797169,15.6517,145.09,145.02,1.37873752]
[1720922797682,15.6517,145.09,145.03,1.37847545]
[1720922798171,15.6517,145.09,144.99,1.37857233]
[1720922798480,15.6517,145.09,144.99,67.12857233]
[1720922798689,15.6517,145.09,145.0,20.0]
[1720922798870,15.6517,145.09,145.01,45.0]
[1720922799073,15.6517,145.09,145.02,20.0]
[1720922799259,15.6517,145.09,145.03,45.0]
[1720922801661,15.6517,145.09,145.04,1.37848926]
[1720922806001,15.6517,145.09,144.97,41.97821899]
[1720922806172,15.0633,145.07,144.95,274.9501]
[1720922806372,1.72391857,145.06,144.95,274.9501]
[1720922806783,1.72391857,145.06,144.95,15.8501]
[1720922807599,1.72391857,145.06,144.96,20.0]
[1720922811504,1.72391857,145.06,144.97,0.8999486]
[1720922811673,1.72391857,145.06,144.96,20.0]
[1720922813178,1.72391857,145.06,144.97,1.09047659]
[1720922813584,1.72391857,145.06,144.97,46.09047659]
[1720922813785,1.72391857,145.06,144.96,20.0]
[1720922816374,1.72391857,145.06,144.97,45.0]
[1720922817093,1.72391857,145.06,144.96,20.5052352]
[1720922817600,1.72391857,145.06,144.97,1.37911278]
[1720922817787,1.72391857,145.06,144.97,46.37911278]
[1720922818185,1.72391857,145.06,144.97,45.0]
[1720922818389,1.72391857,145.06,144.96,20.5052352]
[1720922819503,1.72391857,145.06,144.97,1.37911374]
[1720922819803,1.72391857,145.06,144.97,46.37911374]
[1720922820793,16.78695234,145.07,144.97,46.37911374]
[1720922820990,16.78695234,145.07,144.98,20.0]
[1720922821299,16.78695234,145.07,144.99,45.0]
[1720922821801,16.78695234,145.07,145.0,1.37898427]
[1720922823606,16.78688041,145.07,145.0,1.37898427]
[1720922823806,15.0633,145.07,145.0,1.37898427]
[1720922823980,16.78677808,145.07,145.0,1.37898427]
[1720922826303,16.78677808,145.07,144.97,20.0]
[1720922826512,16.78677808,145.07,144.98,45.0]
[1720922827110,16.78677808,145.07,144.96,22.9352352]
[1720922827111,15.4542,145.04,144.96,0.5052352]
[1720922827417,21.8261,145.02,144.96,0.5052352]
[1720922827601,1.72440344,145.01,144.96,0.5052352]
[1720922828117,15.4542,145.0,144.96,0.5052352]
[1720922828409,1.72472127,144.99,144.96,0.5052352]
[1720922828613,6.3719,144.97,144.96,0.5052352]
[1720922832508,19.5452,144.97,144.87,22.43]
[1720922832817,1.72536111,144.96,144.83,22.43]
[1720922833027,1.72529768,144.95,144.83,22.43]
[1720922833891,1.72511882,144.94,144.83,22.43]
[1720922834120,1.72509034,144.96,144.84,45.0]
[1720922834310,1.72511292,144.95,144.84,45.0]
[1720922835112,1.72511292,144.95,144.82,2.73829244]
[1720922835311,1.72511292,144.95,144.83,1.34174036]
[1720922836319,1.72511292,144.95,144.82,21.38029312]
[1720922836525,1.72511292,144.95,144.83,1.38022643]
[1720922836826,15.0518,144.94,144.83,1.38022643]
[1720922837125,1.72541457,144.93,144.83,1.38022643]
[1720922837324,1.72541458,144.92,144.83,46.38022643]
[1720922837528,1.72541458,144.92,144.84,20.0]
[1720922837708,1.72541458,144.92,144.85,46.38022412]
[1720922838026,1.72541458,144.92,144.86,1.38022684]
[1720922838209,1.72528355,144.93,144.86,1.38022684]
[1720922838423,16.77705936,144.94,144.87,1.09696098]
[1720922838609,15.0518,144.94,144.86,20.0]
[1720922838803,1.72506802,144.93,144.86,20.0]
[1720922839007,1.72506802,144.93,144.87,1.38005571]
[1720922839407,15.0518,144.94,144.87,1.38005571]
[1720922839616,8.3822918,144.93,144.87,1.38005571]
[1720922840204,8.3822918,144.93,144.84,21.38028271]
[1720922841158,6.6572,144.93,144.85,45.0]
[1720922841323,15.0518,144.94,144.86,21.38002453]
[1720922841518,15.0518,144.94,144.87,45.0]
[1720922841834,16.77682072,144.94,144.88,21.38001658]
[1720922842011,16.77682072,144.94,144.88,1.38001658]
[1720922842819,15.0518,144.94,144.89,1.38003192]
[1720922843013,15.0518,144.94,144.88,20.0]
[1720922843616,15.0518,144.94,144.89,1.37995018]
[1720922843933,15.0518,144.94,144.88,20.0]
[1720922844135,6.6572,144.96,144.89,1.37986973]
[1720922845145,1.72481823,144.95,144.89,1.37985458]
[1720922845739,6.6572,144.96,144.89,1.37985458]
[1720922846631,6.6572,144.96,144.89,46.37985458]
[1720922848112,1.72489155,144.95,144.89,1.37985458]
[1720922848603,6.6572,144.96,144.89,1.37985458]
[1720922849116,6.6572,144.96,144.89,46.37985458]
[1720922849317,1.72488375,144.95,144.88,20.0]
[1720922849639,1.72488375,144.95,144.85,25.12015731]
[1720922849814,1.72488375,144.95,144.86,65.0]
[1720922850229,1.72488375,144.95,144.87,1.3800189]
[1720922850416,1.72488375,144.95,144.86,65.0]
[1720922851218,1.72488375,144.95,144.83,22.43]
[1720922851219,15.9272,144.94,144.83,22.43]
[1720922851425,1.72534522,144.93,144.83,22.43]
[1720922851624,1.72535089,144.92,144.83,22.43]
[1720922851947,1.72535089,144.92,144.84,1.38027823]
[1720922852112,1.72535089,144.92,144.82,18.04885755]
[1720922852311,1.72535089,144.92,144.83,1.38038877]
[1720922852637,1.72536616,144.93,144.82,40.47885755]
[1720922852836,6.6572,144.92,144.81,0.8691099]
[1720922853042,1.72558615,144.91,144.81,0.8691099]
[1720922854210,1.72558615,144.91,144.81,20.8691099]
[1720922854411,1.72558615,144.91,144.82,45.0]
[1720922854618,1.72558615,144.91,144.83,20.0]
[1720922855017,15.9272,144.9,144.83,20.0]
[1720922855212,1.7257121,144.89,144.81,20.8691099]
[1720922855428,1.7257121,144.89,144.82,1.38051073]
[1720922855628,1.7257121,144.89,144.83,1.3805002]
[1720922855833,1.7257121,144.89,144.81,20.8691099]
[1720922856346,17.65284292,144.9,144.82,46.18275007]
[1720922856638,15.9272,144.9,144.83,21.38040337]
[1720922856839,6.6572,144.92,144.84,22.43]
[1720922857141,6.6572,144.92,144.85,66.38009744]
[1720922857726,6.6572,144.92,144.86,22.43]
[1720922857926,6.6572,144.92,144.87,1.3800725]
[1720922858254,6.6572,144.92,144.86,22.43]
[1720922858448,6.6572,144.92,144.85,65.0]
[1720922860145,6.6572,144.92,144.86,1.38007478]
[1720922861519,6.6572,144.92,144.86,1.38008313]
[1720922861920,6.6572,144.92,144.86,23.81008313]
[1720922862216,15.9272,144.94,144.87,65.0]
[1720922862418,15.9272,144.94,144.88,23.80986406]
[1720922862655,15.9272,144.94,144.89,45.0]
[1720922862837,15.9272,144.94,144.9,1.37992781]
[1720922863517,15.9272,144.94,144.87,20.0]
[1720922863721,1.72483596,144.93,144.85,42.43]
[1720922863920,1.72483596,144.93,144.85,87.43]
[1720922864142,17.6522978,144.94,144.86,1.38009149]
[1720922864444,15.9272,144.94,144.86,1.38009149]
[1720922864656,15.9272,144.94,144.85,87.43]
[1720922865818,15.9272,144.94,144.86,1.37999611]
[1720922866521,1.72499374,144.93,144.86,1.37999611]
[1720922866747,1.72499374,144.93,144.86,1.38006798]
[1720922867151,1.72499374,144.93,144.85,42.43]
[1720922867450,15.9272,144.94,144.86,1.38016018]
[1720922867646,17.65229219,144.94,144.86,1.38016018]
[1720922868145,17.65229219,144.94,144.86,46.38016018]
[1720922868344,17.65229219,144.94,144.87,20.0]
[1720922868541,15.9272,144.94,144.88,1.38007124]
[1720922869534,15.9272,144.94,144.87,20.0]
[1720922869738,15.9272,144.94,144.88,23.80999198]
[1720922869932,15.9272,144.94,144.89,45.0]
[1720922870152,15.9272,144.94,144.9,1.37985293]
[1720922872257,6.5176,144.96,144.9,23.80985293]
[1720922872561,6.5176,144.96,144.91,65.0]
[1720922872746,15.6001,144.98,144.92,23.80959474]
[1720922872952,15.6001,144.98,144.93,21.3794874]
[1720922873662,6.6473,145.0,144.93,21.3794874]
[1720922873831,6.6473,145.0,144.94,67.43]
[1720922874032,6.6473,145.0,144.95,1.37928839]
[1720922874239,6.6473,145.0,144.96,1.37928426]
[1720922874764,15.6001,145.02,144.96,1.37928426]
[1720922877256,15.6001,145.02,144.95,20.0]
[1720922877760,15.6001,145.02,144.96,1.37919394]
[1720922879279,15.6001,145.02,144.95,20.0]
[1720922879457,15.6001,145.02,144.91,22.43]
[1720922879458,15.6001,145.02,144.92,20.0]
[1720922880270,17.32432671,145.02,144.93,23.80938137]
[1720922880469,15.6001,145.02,144.94,20.0]
[1720922880769,17.32409693,145.02,144.95,1.37919754]
[1720922881164,15.6001,145.02,144.94,20.0]
[1720922881762,15.6001,145.02,144.95,1.37937133]
[1720922882056,15.6001,145.02,144.94,20.0]
[1720922882459,15.6001,145.02,144.91,22.43]
[1720922882873,15.6001,145.02,144.89,16.0227]
[1720922883062,6.4149,145.0,144.89,16.0227]
[1720922883262,1.72465354,144.99,144.89,16.0227]
[1720922883479,1.72465354,144.99,144.9,1.37963449]
[1720922883691,1.72465354,144.99,144.9,23.80963449]
[1720922883983,1.72465354,144.99,144.91,20.0]
[1720922884384,1.72465354,144.99,144.92,1.37962773]
[1720922884676,6.4149,145.0,144.92,1.37962773]
[1720922884882,6.4149,145.0,144.93,23.80951031]
[1720922885070,6.4149,145.0,144.94,45.0]
[1720922885266,6.4149,145.0,144.95,1.37932022]
[1720922885576,1.72415499,144.99,144.95,1.37932399]
[1720922885780,8.13927665,145.0,144.91,42.43]
[1720922885978,8.13927665,145.0,144.92,1.37950132]
[1720922886179,8.13927665,145.0,144.93,1.37952879]
[1720922886768,6.4149,145.0,144.93,21.37952879]
[1720922887278,6.4149,145.0,144.93,43.80952879]
[1720922887475,6.4149,145.0,144.94,45.0]
[1720922887683,6.4149,145.0,144.95,1.37932995]
[1720922887887,6.4149,145.0,144.96,1.37944459]
[1720922888189,6.4149,145.0,144.92,20.0]
[1720922888886,6.4149,145.0,144.93,1.37947294]
[1720922889060,6.4149,145.0,144.93,46.37947294]
[1720922889266,15.6001,145.02,144.93,46.37947294]
[1720922889565,15.6001,145.02,144.94,20.0]
[1720922889884,15.6001,145.02,144.95,1.37927974]
[1720922890090,15.6001,145.02,144.96,1.37916858]
[1720922890490,15.6001,145.02,144.96,21.37916858]
[1720922890788,15.6001,145.02,144.97,45.0]
[1720922890961,15.6001,145.02,144.98,1.37909744]
[1720922892091,15.6001,145.02,144.99,1.37909697]
[1720922892389,15.6001,145.02,144.97,45.0]
[1720922896871,6.4149,145.04,144.98,1.37910272]
[1720922897881,6.4149,145.04,144.97,45.0]
[1720922899493,1.723841,145.03,144.96,20.0]
[1720922899993,6.4149,145.04,144.97,1.37925353]
[1720922900195,6.4149,145.04,144.97,46.37925353]
[1720922900894,6.4149,145.04,144.97,45.0]
[1720922901980,6.4149,145.04,144.98,1.37906863]
[1720922903193,6.4149,145.04,144.97,45.0]
[1720922903792,6.4149,145.04,144.98,1.37905997]
[1720922904687,6.4149,145.04,145.01,11.21]
[1720922905304,6.4149,145.04,144.97,89.84]
[1720922905489,8.13869139,145.04,145.0,11.21]
[1720922906187,8.13869139,145.04,145.01,11.21]
[1720922906493,6.4149,145.04,145.01,11.21]
[1720922907903,6.4149,145.04,145.0,11.21]
[1720922908199,15.2076,145.06,145.03,11.21]
[1720922908413,15.2076,145.06,145.04,11.21]
[1720922910499,15.2076,145.06,145.03,11.21]
[1720922911109,1.72349334,145.05,145.02,11.21]
[1720922911314,1.72349334,145.05,145.01,11.21]
[1720922912008,1.72379406,145.04,144.96,20.0]
[1720922912219,1.72379406,145.04,145.0,11.21]
[1720922912380,12.93379406,145.04,144.99,11.21]
[1720922913823,1.72379406,145.04,145.0,11.21]
[1720922913985,1.72388338,145.05,145.01,11.21]
[1720922914197,15.2076,145.06,145.03,11.21]
[1720922914624,1.72368209,145.05,145.03,11.21]
[1720922914998,1.72368209,145.05,145.02,11.21]
[1720922915325,1.72368209,145.05,145.01,11.21]
[1720922915820,15.2076,145.06,145.02,12.58895543]
[1720922916322,15.2076,145.06,145.03,11.21]
[1720922917419,1.72366023,145.05,145.03,11.21]
[1720922917732,1.72366023,145.05,145.02,11.21]
[1720922921018,6.1974,145.08,145.04,11.21]
[1720922921239,6.1974,145.08,145.06,11.21]
[1720922922515,6.1974,145.08,145.05,11.21]
[1720922924413,1.7233165,145.07,145.03,11.21]
[1720922924595,12.9333165,145.07,145.03,11.21]
[1720922925722,7.92087125,145.08,145.04,11.21]
[1720922925900,7.92087125,145.08,145.05,11.21]
[1720922927493,6.1974,145.08,145.05,11.21]
[1720922929522,6.1974,145.08,144.99,16.1376]
[1720922929523,1.72332818,145.07,144.99,16.1376]
[1720922929703,1.72332818,145.07,145.04,11.21]
[1720922933021,7.92085807,145.08,145.04,11.21]
[1720922933222,7.92085807,145.08,145.05,12.5887003]
[1720922933223,6.1974,145.08,145.05,12.5887003]
[1720922933415,15.965,145.1,145.05,1.3787003]
[1720922933725,15.965,145.1,145.0,45.0]
[1720922933726,17.68820217,145.1,145.07,11.21]
[1720922934827,15.965,145.1,145.07,11.21]
[1720922935010,17.68812822,145.1,145.07,11.21]
[1720922935330,17.68812407,145.1,145.07,11.21]
[1720922936126,15.965,145.13,145.09,11.21]
[1720922936329,15.965,145.13,145.1,11.21]
[1720922937321,15.965,145.13,145.04,60.9776]
[1720922937322,1.72281376,145.12,145.09,11.21]
[1720922937730,17.68790861,145.13,145.1,11.21]
[1720922937917,15.965,145.13,145.1,11.21]
[1720922938306,15.965,145.13,145.11,11.21]
[1720922938505,15.965,145.13,145.1,11.21]
[1720922938753,1.72279522,145.12,145.1,11.21]
[1720922939735,17.68779268,145.13,145.09,11.21]
[1720922939913,17.68779268,145.13,145.1,11.21]
[1720922940241,6.1484,145.15,145.1,11.21]
[1720922940432,1.72268093,145.14,145.11,11.21]
[1720922940940,1.72268093,145.14,145.1,11.21]
[1720922941702,1.72268093,145.14,145.11,1.37817512]
[1720922941906,1.72268093,145.14,145.11,12.58817512]
[1720922942436,7.87103382,145.15,145.11,12.58817512]
[1720922942739,7.87103382,145.15,145.12,11.21]
[1720922943517,1.72255813,145.16,145.13,11.21]
[1720922943928,1.72248215,145.2,145.15,11.21]
[1720922944115,11.21,145.22,145.17,11.21]
[1720922944311,1.72202689,145.21,145.17,11.21]
[1720922944516,1.72202689,145.21,145.19,11.21]
[1720922944710,1.7218289,145.23,145.19,11.21]
[1720922944914,12.9318289,145.23,145.19,11.21]
[1720922945433,1.7218289,145.23,145.19,11.21]
[1720922945621,12.9318289,145.23,145.19,11.21]
[1720922945822,1.7218289,145.23,145.19,11.21]
[1720922946635,1.7218289,145.23,145.15,22.37]
[1720922946935,1.7218289,145.23,145.16,1.37743859]
[1720922948305,1.7218289,145.23,145.13,16.6184]
[1720922948517,46.7218289,145.23,145.13,16.6184]
[1720922948909,46.7218289,145.23,145.1,38.9884]
[1720922949106,79.0918289,145.23,145.1,38.9884]
[1720922950134,46.7218289,145.23,145.11,1.3778402]
[1720922950527,56.7218289,145.23,145.1,38.9884]
[1720922950726,66.7218289,145.23,145.1,38.9884]
[1720922950923,22.2714,145.21,145.08,28.3971]
[1720922951225,46.72249762,145.2,145.08,28.3971]
[1720922951736,46.72249762,145.2,145.08,22.37]
[1720922952832,46.72249762,145.2,145.09,1.37813618]
[1720922953327,46.72249762,145.2,145.08,22.37]
[1720922954426,46.72249762,145.2,145.09,1.37798325]
[1720922954823,56.72249762,145.2,145.08,22.37]
[1720922955236,79.09249762,145.2,145.06,38.9884]
[1720922955543,79.09249762,145.2,145.07,20.0]
[1720922957220,79.09249762,145.2,145.08,1.3781375]
[1720922957415,46.72249762,145.2,145.08,68.7481375]
[1720922957632,1.72249762,145.2,145.08,68.7481375]
[1720922957950,1.72249762,145.2,145.1,22.37]
[1720922958152,1.72249762,145.2,145.11,1.37785809]
[1720922958525,1.72249762,145.2,145.1,22.37]
[1720922959025,46.72249762,145.2,145.1,22.37]
[1720922959348,46.72249762,145.2,145.08,67.37]
[1720922960052,46.72249762,145.2,145.08,22.37]
[1720922960849,46.72249762,145.2,145.09,1.37806964]
[1720922961647,46.72249762,145.2,145.08,22.37]
[1720922961815,46.72249762,145.2,145.09,1.37788891]
[1720922962020,1.72249762,145.2,145.1,22.37]
[1720922962223,1.72249762,145.2,145.11,1.37779051]
[1720922963536,1.72249762,145.2,145.11,45.0]
[1720922963750,1.72249762,145.2,145.12,1.37775949]
[1720922965245,1.72249762,145.2,145.12,23.74775949]
[1720922965743,22.2714,145.21,145.12,23.74775949]
[1720922965948,22.2714,145.21,145.13,45.0]
[1720922966120,22.2714,145.21,145.14,1.37745526]
[1720922966524,16.2622,145.21,145.15,1.37744353]
[1720922966755,15.8589,145.24,145.15,1.37744353]
[1720922967046,15.8589,145.24,145.14,22.37]
[1720922967824,15.8589,145.24,145.15,1.37741917]
[1720922968550,27.0389,145.24,145.19,11.18]
[1720922969225,27.0389,145.24,145.2,11.18]
[1720922969448,15.8589,145.24,145.2,11.18]
[1720922970548,15.8589,145.24,145.14,1.37737887]
[1720922970737,15.8589,145.24,145.2,11.18]
[1720922970935,27.0389,145.24,145.2,11.18]
[1720922971429,15.8589,145.24,145.13,81.9399]
[1720922971629,15.8589,145.24,145.23,11.18]
[1720922973148,15.8589,145.28,145.23,11.18]
[1720922973340,1.7211934,145.27,145.24,11.18]
[1720922973730,17.58011532,145.28,145.25,11.18]
[1720922973946,17.58011532,145.28,145.26,11.18]
[1720922974459,15.8589,145.28,145.26,11.18]
[1720922975135,15.8589,145.28,145.19,17.5669486]
[1720922975136,15.8589,145.28,145.27,11.18]
[1720922975345,6.5967,145.29,145.27,11.18]
[1720922975549,6.5967,145.29,145.28,11.18]
[1720922975743,17.5796056,145.31,145.28,11.18]
[1720922976237,1.7207056,145.31,145.29,11.18]
[1720922976437,1.72066902,145.32,145.29,11.18]
[1720922977251,1.72066902,145.32,145.3,11.18]
[1720922978254,1.72066902,145.32,145.26,1.3765358]
[1720922978465,1.72066902,145.32,145.28,11.18]
[1720922978638,1.72066902,145.32,145.23,22.34]
[1720922979439,1.72066902,145.32,145.24,1.37651712]
[1720922980447,1.72066902,145.32,145.24,46.37651712]
[1720922982351,9.1863851,145.33,145.24,46.37651712]
[1720922982564,1.72049202,145.32,145.25,22.34]
[1720922982858,1.72049202,145.32,145.26,1.3764511]
[1720922983053,1.72049228,145.32,145.26,1.3764511]
[1720922985361,9.1863437,145.33,145.26,1.3764511]
[1720922986461,0.8691099,145.33,145.27,22.34]
[1720922986654,0.8691099,145.33,145.28,1.37608739]
[1720922987649,0.8691099,145.33,145.28,46.37608739]
[1720922988953,0.8691099,145.33,145.29,42.34]
[1720922989155,0.8691099,145.33,145.3,1.3760122]
[1720922989764,0.8691099,145.33,145.3,46.3760122]
[1720922991367,0.8691099,145.33,145.27,22.34]
[1720922991539,0.8691099,145.33,145.25,22.34]
[1720922991744,0.8691099,145.33,145.26,1.37630084]
[1720922992147,0.8691099,145.33,145.28,22.34]
[1720922992351,0.8691099,145.33,145.29,1.37611408]
[1720922992547,0.8691099,145.33,145.28,22.34]
[1720922992760,0.8691099,145.33,145.29,1.37625461]
[1720922992962,0.8691099,145.33,145.26,22.34]
[1720922993261,6.0787,145.32,145.23,22.34]
[1720922993462,1.72055725,145.31,145.23,22.34]
[1720922994475,1.72055725,145.31,145.24,20.0]
[1720922994850,6.0787,145.32,145.25,1.37652114]
[1720922994851,7.79935142,145.32,145.25,1.37652114]
[1720922995649,7.79935142,145.32,145.24,20.0]
[1720922995852,7.79935142,145.32,145.23,22.34]
[1720922996150,7.79935142,145.32,145.24,1.37668727]
[1720922996370,45.0,145.31,145.22,21.37677659]
[1720922996570,1.72097074,145.3,145.22,21.37677659]
[1720922997162,6.0787,145.32,145.22,21.37677659]
[1720922997163,1.72079625,145.29,145.22,21.37677659]
[1720922997468,1.72084826,145.31,145.23,1.37667861]
[1720922997668,46.72084826,145.31,145.21,22.34]
[1720922997855,15.0448,145.3,145.18,15.8859]
[1720922998054,1.72113201,145.29,145.18,38.2259]
[1720923000179,1.72113201,145.29,145.19,65.0]
[1720923000755,16.76592078,145.3,145.21,22.34]
[1720923001055,16.76592078,145.3,145.22,46.37667221]
[1720923001476,1.72084189,145.29,145.22,45.0]
[1720923002384,15.0448,145.3,145.23,23.71666375]
[1720923002565,15.0448,145.3,145.27,11.17]
[1720923003078,1.7207888,145.29,145.27,11.17]
[1720923003483,1.7207888,145.29,145.26,11.17]
[1720923003671,1.7207888,145.29,145.18,15.8859]
[1720923003864,11.17,145.27,145.23,11.17]
[1720923004065,11.17,145.27,145.22,11.17]
[1720923004066,8.19547422,145.26,145.22,11.17]
[1720923004268,8.19547422,145.26,145.24,11.17]
[1720923004577,8.19547422,145.26,145.19,22.36]
[1720923004767,8.19547422,145.26,145.2,1.37701437]
[1720923004968,8.19547422,145.26,145.19,22.36]
[1720923005283,8.19547025,145.29,145.21,22.36]
[1720923005480,8.19547025,145.29,145.22,1.37678503]
[1720923006461,8.19547025,145.29,145.21,22.36]